bitfinex/quotes_ETHUSD_20240716
["timestamp","ask_amount","ask_price","bid_price","bid_amount"]
[1721102294418,1.03371345,3476.7,3476.5,5.87644]
[1721102294634,1.03371345,3476.6,3476.5,5.87644]
[1721102294917,2.24122145,3476.8,3476.5,5.87644]
[1721102295105,1.03371345,3476.7,3476.5,5.87644]
[1721102295304,1.03371345,3476.6,3476.5,5.87644]
[1721102295522,1.207508,3477.0,3476.6,2.87635]
[1721102295819,1.207508,3477.2,3476.8,2.87618]
[1721102296053,2.24116456,3477.1,3476.8,2.87618]
[1721102296199,1.03365656,3477.0,3476.8,2.87618]
[1721102296398,1.03367584,3476.9,3476.8,3.48062421]
[1721102296594,1.03367584,3477.0,3476.8,3.48064421]
[1721102296829,1.207508,3477.3,3477.1,2.87594]
[1721102297156,2.82624791,3477.8,3477.1,2.87594]
[1721102297157,2.24109475,3477.2,3477.1,2.87594]
[1721102297700,1.03358675,3477.2,3477.1,2.87594]
[1721102298004,2.24109475,3477.2,3477.1,2.87594]
[1721102299003,1.207508,3477.2,3477.1,2.87594]
[1721102299313,2.24173675,3477.2,3477.1,2.87594]
[1721102302417,1.20812708,3477.2,3477.1,2.87594]
[1721102302620,2.24178166,3477.2,3477.1,2.87594]
[1721102303215,1.03359611,3477.2,3477.1,2.87594]
[1721102303440,1.03355173,3477.3,3477.2,2.87587]
[1721102303641,1.03355161,3477.3,3477.2,2.87587]
[1721102305058,2.24173716,3477.3,3477.2,2.87587]
[1721102305635,1.03355161,3477.3,3477.2,2.87587]
[1721102305835,1.0335402,3477.3,3477.2,2.87587]
[1721102306031,1.0335402,3477.3,3477.2,8.72973]
[1721102306232,1.03348862,3477.5,3477.4,2.87571]
[1721102306433,1.03348803,3477.5,3477.4,2.87571]
[1721102306756,1.03348803,3477.5,3477.4,5.75142]
[1721102307065,1.20800708,3477.7,3477.4,2.87571]
[1721102307066,1.03348762,3477.6,3477.4,2.87571]
[1721102307243,2.24149318,3477.6,3477.4,2.87571]
[1721102307569,1.20800708,3477.7,3477.6,2.87554]
[1721102307737,2.24148883,3477.7,3477.6,2.87554]
[1721102308338,2.24123296,3477.7,3477.6,2.87554]
[1721102309265,2.24109255,3477.7,3477.6,2.87554]
[1721102309559,1.03345342,3477.7,3477.6,2.87554]
[1721102310528,1.03343168,3477.8,3477.7,2.87546]
[1721102310725,1.03343252,3477.8,3477.7,2.87546]
[1721102311860,1.20761235,3478.0,3477.9,2.87529]
[1721102312065,2.24101117,3478.0,3477.9,2.87529]
[1721102312266,1.03339882,3478.0,3477.9,2.87529]
[1721102312424,1.014,3478.2,3477.9,2.87529]
[1721102312625,1.20694859,3478.0,3477.9,2.87529]
[1721102312926,2.24022122,3478.0,3477.7,2.87545]
[1721102313128,1.03340166,3477.9,3477.7,2.87545]
[1721102313346,2.24022122,3477.9,3477.7,2.87545]
[1721102313671,1.03340166,3477.8,3477.7,2.87545]
[1721102315922,1.03346387,3477.8,3477.7,2.87545]
[1721102318757,1.03346387,3477.9,3477.7,2.87545]
[1721102318939,2.24028343,3477.9,3477.7,2.87545]
[1721102319139,2.22081956,3478.0,3477.7,2.87545]
[1721102319338,1.0334349,3477.9,3477.7,2.87545]
[1721102319564,2.24025446,3477.9,3477.7,2.87545]
[1721102319738,1.0334349,3477.8,3477.7,2.87545]
[1721102320672,1.0334349,3477.9,3477.7,2.87545]
[1721102321478,2.24025446,3477.9,3477.7,2.87545]
[1721102321675,1.0334349,3477.8,3477.7,2.87545]
[1721102322033,1.0334349,3477.9,3477.7,2.87545]
[1721102322364,2.24025446,3477.9,3477.7,2.87545]
[1721102322559,1.03344939,3477.8,3477.7,2.87545]
[1721102322745,1.03344939,3477.9,3477.7,2.87545]
[1721102322952,3.4026,3478.0,3477.7,2.87545]
[1721102323281,1.03344365,3477.9,3477.7,2.87545]
[1721102325653,1.03345074,3477.8,3477.7,2.87545]
[1721102325859,1.03345091,3477.8,3477.7,2.87545]
[1721102326062,1.03345091,3477.9,3477.7,2.87545]
[1721102326391,1.03345091,3477.8,3477.7,2.87545]
[1721102326584,1.03345091,3477.9,3477.7,2.87545]
[1721102329055,3.59494363,3478.0,3477.7,2.87545]
[1721102329259,1.03342578,3477.9,3477.7,2.87545]
[1721102330255,1.03342578,3477.8,3477.7,2.87545]
[1721102330887,1.03342578,3478.0,3477.7,2.87545]
[1721102331095,1.03342578,3477.9,3477.7,2.87545]
[1721102331266,1.03342578,3477.8,3477.7,2.87545]
[1721102331464,1.20634363,3478.1,3477.8,2.87537]
[1721102331668,1.03340368,3478.0,3477.8,2.87537]
[1721102332457,1.03339905,3477.9,3477.8,2.87537]
[1721102332880,1.03339277,3477.9,3477.8,2.87537]
[1721102333089,1.03339277,3478.0,3477.8,2.87537]
[1721102334394,1.03339277,3477.9,3477.8,2.87537]
[1721102334561,1.03339277,3478.1,3477.8,2.87537]
[1721102334757,1.03339277,3478.0,3477.8,2.87537]
[1721102335090,1.03339277,3477.9,3477.8,2.87537]
[1721102335462,1.03339277,3477.9,3477.6,2.87554]
[1721102335463,1.03337956,3478.1,3477.9,2.87528]
[1721102335663,1.20603659,3478.2,3477.9,2.87528]
[1721102335866,1.03337428,3478.1,3477.9,2.87528]
[1721102336162,1.03337428,3478.1,3477.9,5.33228]
[1721102337503,1.03337428,3478.0,3477.9,5.33228]
[1721102337806,1.03337428,3478.1,3477.9,5.33228]
[1721102339103,1.03338505,3478.0,3477.9,5.33228]
[1721102339264,1.03338505,3478.1,3477.9,5.33228]
[1721102339465,1.03338505,3478.0,3477.9,2.87528]
[1721102340490,2.47081966,3478.0,3477.0,2.3401]
[1721102340700,1.014,3477.5,3477.0,2.87602]
[1721102340881,1.03338505,3477.4,3477.0,2.87602]
[1721102341094,2.23942164,3477.4,3477.0,2.87602]
[1721102341373,1.03338505,3477.3,3477.0,2.87602]
[1721102341572,1.03360787,3477.2,3477.0,2.87602]
[1721102341805,1.03360787,3477.1,3476.9,2.8761]
[1721102342114,2.52315847,3477.5,3476.9,2.8761]
[1721102342115,1.03362102,3477.0,3476.9,2.8761]
[1721102342415,1.03362102,3477.2,3476.9,2.8761]
[1721102343591,1.03362102,3477.1,3476.9,2.8761]
[1721102343791,1.03362102,3477.0,3476.9,2.8761]
[1721102344279,1.03362102,3477.2,3476.9,2.8761]
[1721102344475,1.03362102,3477.1,3476.9,2.8761]
[1721102344758,1.03361774,3477.0,3476.5,5.87644]
[1721102345021,4.58113659,3477.3,3476.5,5.87644]
[1721102345180,1.03365821,3477.2,3476.5,5.87644]
[1721102345376,1.03365821,3477.2,3476.6,2.87634]
[1721102345700,1.03365821,3477.2,3476.7,3.0]
[1721102346808,1.03365821,3477.2,3476.5,2.87643]
[1721102347113,2.2396948,3477.2,3476.6,2.87635]
[1721102347318,1.03365821,3477.1,3476.6,2.87635]
[1721102349817,1.03365821,3477.1,3476.7,2.87627]
[1721102350241,1.20603659,3477.5,3476.7,2.87627]
[1721102350409,1.03357012,3477.4,3476.7,2.87627]
[1721102350745,2.23960671,3477.4,3476.7,2.87627]
[1721102350948,1.03357012,3477.3,3476.7,2.87627]
[1721102351246,1.0335826,3477.2,3476.7,2.87627]
[1721102351446,1.0335826,3477.1,3476.7,2.87627]
[1721102351608,1.20603659,3477.3,3476.7,2.87627]
[1721102351812,1.03362126,3477.2,3476.7,2.87627]
[1721102353308,1.03362126,3477.2,3476.8,0.575271]
[1721102353610,1.03362126,3477.1,3476.8,0.575271]
[1721102353809,1.03362126,3477.0,3476.8,0.575271]
[1721102354143,1.20603659,3477.4,3476.8,0.575271]
[1721102354316,1.03362194,3477.3,3476.8,0.575271]
[1721102354718,1.03361679,3477.2,3476.8,0.575271]
[1721102354935,1.03361679,3477.1,3476.8,0.575271]
[1721102355137,1.03362199,3477.0,3476.8,0.575271]
[1721102355351,1.20680592,3477.4,3476.8,0.575271]
[1721102355544,2.24042981,3477.3,3476.7,2.87627]
[1721102355840,1.03362389,3477.2,3476.7,2.87627]
[1721102356036,1.03362389,3477.1,3476.8,2.87619]
[1721102356212,1.20680592,3477.7,3477.0,2.87604]
[1721102356412,2.24034756,3477.6,3477.0,2.87604]
[1721102356613,1.03354164,3477.5,3477.0,2.87604]
[1721102357453,1.03355626,3477.4,3477.0,2.87604]
[1721102357657,1.03355626,3477.3,3477.0,2.87604]
[1721102357860,1.20680592,3477.6,3477.0,2.87604]
[1721102358061,1.03353123,3477.5,3477.0,2.87604]
[1721102358219,1.03353123,3477.4,3477.0,2.87604]
[1721102358415,1.20680592,3477.7,3477.0,3.782693]
[1721102358754,1.03352273,3477.6,3477.0,3.782693]
[1721102358922,2.24032865,3477.6,3477.0,3.782693]
[1721102359267,1.03352273,3477.5,3477.0,3.782693]
[1721102360761,1.03355079,3477.4,3477.0,3.782693]
[1721102361072,1.03355079,3477.3,3477.0,3.782693]
[1721102361236,1.20680592,3477.6,3477.0,3.782693]
[1721102361436,1.03355443,3477.5,3477.0,3.782693]
[1721102364046,1.03356527,3477.4,3477.0,3.782693]
[1721102364252,1.03356527,3477.3,3477.0,3.782693]
[1721102364559,1.20680592,3477.6,3477.0,2.87604]
[1721102364797,1.03356198,3477.5,3477.0,2.87604]
[1721102366602,1.03356198,3477.5,3477.1,2.3003]
[1721102366796,1.20680592,3477.7,3477.1,2.3003]
[1721102366797,1.03356198,3477.4,3477.1,2.3003]
[1721102367002,1.20680592,3477.7,3477.2,2.87584]
[1721102367171,1.03353167,3477.6,3477.2,2.87584]
[1721102367377,1.03353267,3477.5,3477.2,2.87584]
[1721102367581,1.03353267,3477.4,3477.2,2.87584]
[1721102367783,1.20680592,3477.7,3477.2,2.87584]
[1721102368005,1.03353677,3477.6,3477.2,2.87584]
[1721102368713,2.24034269,3477.6,3477.2,2.87584]
[1721102368881,1.03353677,3477.5,3477.2,2.87584]
[1721102370208,1.03353677,3477.5,3477.1,2.3003]
[1721102370415,1.03355093,3477.4,3477.1,5.17624]
[1721102370700,1.03356106,3477.3,3477.1,5.17624]
[1721102370906,1.20680592,3477.6,3477.1,5.17624]
[1721102371204,1.03356099,3477.5,3477.1,5.981476]
[1721102371404,1.03356099,3477.4,3477.1,5.981476]
[1721102371712,1.03356099,3477.3,3477.1,5.981476]
[1721102372005,1.20680592,3477.6,3477.1,5.981476]
[1721102372203,1.03355464,3477.5,3477.1,5.17624]
[1721102372407,1.03355464,3477.5,3477.2,2.87587]
[1721102372568,1.014,3477.8,3477.2,2.87587]
[1721102372878,2.24029321,3477.7,3477.2,2.87587]
[1721102373208,1.03353454,3477.6,3477.2,2.87587]
[1721102373777,1.03353633,3477.5,3477.2,2.87587]
[1721102373987,1.03353633,3477.4,3477.2,2.87587]
[1721102374179,1.20675867,3477.7,3477.2,2.87587]
[1721102374375,1.03352701,3477.6,3477.2,2.87587]
[1721102375187,2.24028568,3477.6,3477.1,2.3003]
[1721102375383,1.03352701,3477.5,3477.1,2.3003]
[1721102376017,1.03352701,3477.5,3476.9,2.87612]
[1721102377223,1.03356251,3477.4,3476.9,2.87612]
[1721102377410,1.03356251,3477.3,3476.9,2.87612]
[1721102377590,1.03356251,3477.2,3476.9,2.87612]
[1721102377921,1.20675867,3477.6,3476.9,2.87612]
[1721102378124,1.03356308,3477.5,3476.9,2.87612]
[1721102379491,2.24032175,3477.5,3476.9,2.87612]
[1721102379692,1.03356308,3477.4,3476.9,2.87612]
[1721102380414,1.03356291,3477.3,3476.9,2.87612]
[1721102380605,1.03356291,3477.2,3476.9,2.87612]
[1721102380803,1.014,3477.8,3476.9,2.87612]
[1721102381035,1.20735511,3477.5,3476.9,2.87612]
[1721102381202,1.03356214,3477.4,3476.9,2.87612]
[1721102381525,1.03356214,3477.4,3477.0,2.87603]
[1721102381887,1.03356214,3477.3,3477.0,2.87603]
[1721102382089,1.20735511,3477.6,3477.0,2.87603]
[1721102382291,1.03351071,3477.5,3477.0,2.87603]
[1721102382492,1.03351071,3477.5,3477.0,0.919163]
[1721102383038,1.03351071,3477.4,3477.0,0.919163]
[1721102383193,1.03351071,3477.3,3477.0,0.919163]
[1721102383395,1.20735511,3477.6,3477.0,3.795133]
[1721102383740,2.24088408,3477.5,3477.0,2.87597]
[1721102384030,1.03352897,3477.4,3477.1,2.87594]
[1721102384592,1.03352897,3477.3,3477.1,2.87594]
[1721102384791,1.03352897,3477.2,3477.1,2.87594]
[1721102385338,7.32,3477.9,3477.1,2.87594]
[1721102385339,1.03352897,3477.4,3477.1,2.87594]
[1721102385517,1.03352897,3477.4,3476.6,3.0]
[1721102385518,1.03352897,3477.3,3476.6,3.0]
[1721102385693,2.24088408,3477.3,3476.5,5.87644]
[1721102386036,2.24088408,3477.2,3476.8,2.87619]
[1721102386209,1.03352897,3477.1,3476.9,3.0]
[1721102386724,2.24088408,3477.1,3476.6,2.87637]
[1721102386930,1.03367322,3477.0,3476.7,3.0]
[1721102387714,1.03367322,3476.9,3476.7,3.0]
[1721102387997,1.03367322,3476.8,3476.7,3.0]
[1721102388335,1.03367322,3476.8,3476.4,2.87653]
[1721102388534,1.03367322,3476.7,3476.5,3.0]
[1721102388844,1.03367923,3476.6,3476.5,3.0]
[1721102389133,1.20849981,3477.0,3476.5,3.0]
[1721102389134,1.03367923,3476.9,3476.5,3.0]
[1721102389894,1.03367923,3476.8,3476.5,3.0]
[1721102390131,1.0336586,3476.7,3476.5,3.0]
[1721102390437,1.20849981,3477.0,3476.5,3.0]
[1721102390638,1.03367454,3476.9,3476.5,3.0]
[1721102390794,1.03367454,3476.9,3476.5,5.87643]
[1721102392131,1.03367454,3476.9,3476.5,6.853141]
[1721102392498,1.03367454,3476.8,3476.5,6.853141]
[1721102392738,1.03367454,3476.7,3476.6,2.87637]
[1721102392907,1.03367454,3477.0,3476.7,2.87622]
[1721102393114,1.20849981,3477.3,3476.8,0.50303821]
[1721102393434,1.03355357,3477.2,3476.7,2.87622]
[1721102393664,1.20849981,3477.4,3476.7,2.87622]
[1721102393665,1.03355357,3477.1,3476.7,2.87622]
[1721102393833,1.03353449,3477.0,3476.7,2.87622]
[1721102394020,1.20849981,3477.3,3476.7,2.87625]
[1721102394338,2.24205188,3477.2,3476.7,2.87625]
[1721102394639,1.03355207,3477.1,3476.7,2.87625]
[1721102395354,2.24205188,3477.1,3476.7,2.87625]
[1721102395512,1.03355207,3477.0,3476.7,2.87625]
[1721102396329,1.03355207,3477.0,3476.8,2.8762]
[1721102396528,1.03362519,3476.9,3476.8,2.8762]
[1721102396729,1.20849981,3477.4,3476.8,2.8762]
[1721102396926,1.0335491,3477.3,3476.8,2.8762]
[1721102397133,1.0335491,3477.3,3476.9,0.815555]
[1721102398364,2.24204891,3477.3,3476.9,0.815555]
[1721102398654,1.0335491,3477.2,3476.9,0.815555]
[1721102398828,1.0335491,3477.1,3476.9,0.815555]
[1721102399029,1.20849981,3477.4,3476.9,0.815555]
[1721102399030,1.0335491,3477.0,3476.9,0.815555]
[1721102399460,1.0335491,3477.2,3476.9,0.815555]
[1721102400657,1.0335491,3477.2,3476.9,3.691645]
[1721102401194,1.0335491,3477.2,3477.0,0.3691645]
[1721102401340,1.0335491,3477.1,3477.0,2.87597]
[1721102401536,4.69314891,3477.3,3476.8,2.8762]
[1721102401758,1.0335491,3477.2,3476.8,2.8762]
[1721102402136,3.65959981,3477.3,3476.8,2.8762]
[1721102402351,1.03359091,3477.2,3476.8,2.8762]
[1721102403202,2.24209072,3477.2,3476.8,2.8762]
[1721102403500,1.03359091,3477.1,3476.8,2.8762]
[1721102403659,1.03359091,3477.1,3476.5,5.87638]
[1721102403988,3.25609072,3477.1,3476.5,3.0]
[1721102404158,1.75535537,3477.0,3476.3,3.0]
[1721102404360,1.03359091,3476.9,3476.3,3.0]
[1721102404761,1.03359091,3476.8,3476.3,3.0]
[1721102405006,1.03359091,3476.7,3476.4,2.87647]
[1721102405212,2.22249981,3477.1,3476.5,3.0]
[1721102405510,1.03366314,3477.0,3476.5,5.87643]
[1721102405710,2.22249981,3477.1,3476.5,5.87643]
[1721102405884,2.24206044,3477.0,3476.5,5.87643]
[1721102406081,1.03366341,3476.9,3476.5,5.87643]
[1721102406469,1.03366341,3476.8,3476.5,5.87643]
[1721102406669,1.03366341,3476.7,3476.5,6.853135]
[1721102406905,1.20839703,3477.1,3476.5,6.853135]
[1721102407214,2.24206275,3477.0,3476.5,5.87643]
[1721102407517,1.03366572,3476.9,3476.5,5.87643]
[1721102407874,1.20839703,3477.1,3476.5,5.87643]
[1721102407875,1.03366572,3476.8,3476.5,5.87643]
[1721102408108,1.03366572,3476.7,3476.5,5.87643]
[1721102408285,1.20839703,3477.0,3476.5,5.87643]
[1721102408489,1.03367911,3476.9,3476.5,5.87643]
[1721102408690,1.20839703,3477.1,3476.5,5.87643]
[1721102408887,1.03362433,3477.0,3476.5,5.87643]
[1721102409091,1.03362433,3476.9,3476.5,5.87643]
[1721102409293,1.03362433,3476.8,3476.5,6.853135]
[1721102409491,1.20839703,3477.2,3476.5,6.853135]
[1721102409693,1.03362694,3477.1,3476.5,5.87643]
[1721102409889,1.03362694,3477.1,3476.8,2.87614]
[1721102410318,1.03362694,3477.0,3476.8,2.87614]
[1721102410893,1.03362694,3476.9,3476.8,2.87614]
[1721102411083,1.03362694,3477.1,3476.8,2.87614]
[1721102411284,1.03362694,3477.0,3476.8,2.87614]
[1721102411485,1.20839703,3477.2,3476.8,2.87614]
[1721102411486,1.03362432,3476.9,3476.8,2.87614]
[1721102411804,1.03362432,3477.1,3476.8,2.87614]
[1721102412104,1.03362432,3477.0,3476.8,2.87614]
[1721102412433,1.03362432,3476.9,3476.8,2.87614]
[1721102412652,3.36582432,3476.9,3476.5,3.0]
[1721102412817,1.03362432,3476.8,3476.5,3.0]
[1721102413014,1.03362432,3476.7,3476.4,3.0]
[1721102413237,1.20839703,3477.0,3476.4,3.875335]
[1721102413554,1.03366749,3476.9,3476.5,2.87642]
[1721102413738,1.03366749,3476.8,3476.6,2.87631]
[1721102413935,3.54059703,3477.2,3476.7,2.87629]
[1721102414251,2.24202843,3477.1,3476.7,2.87629]
[1721102414422,1.0336314,3477.0,3476.7,2.87629]
[1721102414617,2.3322,3477.2,3476.7,2.87629]
[1721102414817,2.24176479,3477.1,3476.7,2.87629]
[1721102415021,1.03366043,3477.0,3476.7,3.48070421]
[1721102415218,1.03366043,3476.9,3476.7,3.48070421]
[1721102415446,1.20810436,3477.3,3476.7,3.48070421]
[1721102415605,1.0335954,3477.2,3476.7,3.48070421]
[1721102416121,2.24169976,3477.2,3476.7,3.48070421]
[1721102416309,1.0335954,3477.1,3476.7,3.48070421]
[1721102417147,1.0335954,3477.0,3476.8,3.751525]
[1721102417351,1.0335954,3476.9,3476.8,3.751525]
[1721102417851,9.6522,3477.5,3476.8,3.751525]
[1721102418160,1.20808315,3477.3,3476.9,2.87611]
[1721102418454,1.03355725,3477.2,3476.9,2.87611]
[1721102418665,1.03355725,3477.1,3476.9,2.87611]
[1721102418820,1.03355725,3477.0,3476.9,2.87611]
[1721102419021,11.16222865,3477.5,3477.0,2.4619]
[1721102419022,8.52808315,3477.5,3477.0,2.4619]
[1721102419221,1.03351168,3477.4,3477.3,2.87579]
[1721102420934,1.03352983,3477.4,3477.3,2.87579]
[1721102422734,1.03352983,3477.5,3477.3,2.87579]
[1721102422929,1.03352983,3477.4,3477.3,2.87579]
[1721102423555,1.03352983,3477.6,3477.3,2.87579]
[1721102424260,1.03350554,3477.5,3477.3,2.87579]
[1721102424459,1.03350554,3477.4,3477.3,2.87579]
[1721102424859,1.03350554,3477.6,3477.3,2.87579]
[1721102425083,1.03350554,3477.5,3477.3,2.87579]
[1721102425283,1.03350554,3477.4,3477.3,2.87579]
[1721102425492,1.03350554,3477.6,3477.3,2.87579]
[1721102425652,1.03350554,3477.5,3477.3,2.87579]
[1721102425847,1.03350554,3477.4,3477.3,2.87579]
[1721102426055,1.03350554,3477.6,3477.3,2.87579]
[1721102426387,1.03350554,3477.5,3477.3,2.87579]
[1721102426686,1.03350554,3477.4,3477.3,2.87579]
[1721102426888,1.20775842,3477.8,3477.4,2.8757]
[1721102427090,1.0334673,3477.7,3477.4,2.8757]
[1721102427288,1.03346766,3477.6,3477.4,2.8757]
[1721102427458,1.03346766,3477.5,3477.4,2.8757]
[1721102427654,1.03346766,3477.5,3477.2,2.87585]
[1721102427871,1.20775842,3477.8,3477.3,0.821367]
[1721102428185,1.03347068,3477.7,3477.3,0.821367]
[1721102428396,2.2412291,3477.7,3477.1,2.87592]
[1721102428690,1.03347068,3477.6,3477.2,3.0]
[1721102428850,1.03347068,3477.5,3477.2,3.0]
[1721102429054,1.03347068,3477.4,3477.2,3.0]
[1721102429390,1.20775842,3477.7,3477.2,3.0]
[1721102429569,2.4576,3477.5,3477.2,3.0]
[1721102429896,2.04752107,3477.4,3476.7,2.3124]
[1721102430052,1.014,3477.1,3476.2,5.18906]
[1721102430253,2.4576,3476.9,3476.2,5.18906]
[1721102430585,1.03372273,3476.8,3476.2,5.18906]
[1721102430792,2.4576,3476.9,3476.3,2.8766]
[1721102430968,1.03370629,3476.8,3476.3,2.8766]
[1721102431956,1.03370629,3476.8,3476.4,3.0]
[1721102432668,1.03370629,3476.8,3476.0,2.3799]
[1721102432863,1.03375058,3476.7,3476.0,2.3799]
[1721102433081,1.03375058,3476.6,3476.0,2.3799]
[1721102433293,7.55549842,3476.9,3476.0,2.3799]
[1721102433590,1.03375742,3476.8,3476.0,2.3799]
[1721102434498,1.03375742,3476.8,3475.9,6.89093]
[1721102435070,3.90995742,3476.8,3475.9,3.0]
[1721102435413,1.03375742,3476.7,3475.8,5.87699]
[1721102436583,1.03375742,3476.7,3475.9,2.87694]
[1721102436757,1.03377784,3476.6,3476.0,3.0]
[1721102436962,4.67883913,3476.9,3476.0,3.0]
[1721102437195,1.03377763,3476.8,3476.0,3.0]
[1721102437590,1.03377763,3476.8,3476.0,3.927084]
[1721102437893,1.03377763,3476.8,3476.1,2.493]
[1721102438096,1.03377763,3476.8,3476.2,2.87669]
[1721102438304,1.03377763,3476.8,3476.3,3.0]
[1721102438662,2.4576,3476.9,3476.3,3.0]
[1721102438989,1.03369748,3476.8,3476.4,0.55266521]
[1721102439895,2.4576,3476.9,3476.4,0.55266521]
[1721102440118,1.0337123,3476.8,3476.4,0.55266521]
[1721102441890,2.4576,3476.9,3476.4,0.55266521]
[1721102442091,1.03370959,3476.8,3476.4,0.55266521]
[1721102443232,2.4576,3476.9,3476.4,0.55266521]
[1721102443399,1.03372053,3476.8,3476.3,5.8766]
[1721102443731,1.03373356,3476.7,3476.3,5.8766]
[1721102444024,1.014,3476.7,3476.3,3.0]
[1721102444186,3.4716,3476.9,3476.2,3.0]
[1721102444389,1.03375161,3476.8,3476.2,3.0]
[1721102446360,3.4716,3476.9,3476.2,6.752062]
[1721102446518,1.03373541,3476.8,3476.2,6.752062]
[1721102446681,1.03373541,3476.8,3476.2,3.875372]
[1721102446883,1.03373541,3476.8,3475.9,3.0]
[1721102447629,1.03373541,3476.8,3475.7,1.014]
[1721102447630,1.014,3476.5,3475.6,2.87716]
[1721102447906,1.014,3476.5,3475.6,5.20636]
[1721102447907,1.03373541,3476.4,3475.6,5.20636]
[1721102448115,1.03373541,3476.4,3475.6,3.78693]
[1721102449410,2.22091647,3476.5,3475.7,3.0]
[1721102449622,1.03390051,3476.4,3475.7,3.0]
[1721102449786,1.03390051,3476.4,3475.0,1.5011586]
[1721102449787,2.3578,3475.8,3474.8,1.50126586]
[1721102449985,2.3578,3475.8,3474.7,2.87787]
[1721102449986,2.67276751,3475.7,3474.9,2.8777]
[1721102450215,1.03390051,3475.6,3474.6,2.4535]
[1721102450422,1.014,3475.2,3474.6,2.878]
[1721102450786,1.014,3475.2,3474.4,2.87816]
[1721102450989,1.014,3475.4,3474.5,2.87809]
[1721102451217,1.014,3475.4,3474.3,3.89226]
[1721102451394,1.014,3475.4,3474.4,0.634576]
[1721102451592,2.87713,3475.7,3474.6,2.87802]
[1721102451823,1.014,3475.3,3474.3,2.87826]
[1721102451987,3.3718,3475.1,3474.3,2.87826]
[1721102452388,3.3718,3475.1,3474.1,2.87843]
[1721102452588,1.014,3474.9,3474.1,0.821052]
[1721102452791,1.014,3474.9,3474.0,2.87849]
[1721102453811,1.014,3474.9,3474.1,3.0]
[1721102454014,6.24942,3475.1,3474.1,5.87844]
[1721102454229,6.24942,3475.1,3474.1,2.87844]
[1721102454439,6.24942,3475.1,3474.2,3.0]
[1721102454716,7.162106,3475.1,3474.2,3.0]
[1721102455144,4.284486,3475.1,3474.2,5.87834]
[1721102455299,3.3718,3475.1,3474.2,5.87834]
[1721102455708,3.3718,3475.1,3474.3,2.87823]
[1721102456293,3.3718,3475.1,3474.2,3.0]
[1721102457645,1.014,3474.9,3474.2,3.0]
[1721102457819,1.014,3474.9,3474.1,3.0]
[1721102459240,1.014,3474.9,3474.1,5.87843]
[1721102460842,1.014,3474.9,3474.1,3.0]
[1721102461009,1.014,3474.9,3474.2,2.87833]
[1721102461220,1.014,3474.9,3474.3,3.0]
[1721102461809,1.014,3475.2,3474.3,5.87826]
[1721102462347,1.014,3475.2,3474.5,2.87809]
[1721102462520,7.32,3475.5,3474.6,5.841209]
[1721102462521,8.334,3475.5,3474.6,5.841209]
[1721102463452,8.334,3475.5,3474.8,2.87783]
[1721102463601,1.014,3475.5,3474.8,2.87783]
[1721102464037,2.2558,3475.6,3474.8,2.87783]
[1721102464038,1.014,3475.3,3474.8,2.87783]
[1721102465210,1.014,3475.3,3474.8,3.76977021]
[1721102466216,1.014,3475.3,3474.6,5.87798]
[1721102466421,1.014,3475.1,3474.6,3.0]
[1721102466648,2.4307,3475.0,3474.6,3.0]
[1721102466949,1.014,3474.9,3474.6,3.0]
[1721102467456,1.014,3475.1,3474.6,6.753655]
[1721102468349,1.014,3475.1,3474.6,3.0]
[1721102471063,1.014,3475.1,3474.6,5.87799]
[1721102471357,3.4447,3475.3,3474.6,5.87799]
[1721102472424,1.014,3475.1,3474.6,5.87799]
[1721102472629,1.014,3475.1,3474.6,3.0]
[1721102472871,1.014,3475.1,3474.5,3.0]
[1721102473352,1.014,3474.9,3474.4,3.0]
[1721102473551,1.014,3474.9,3474.4,5.87819]
[1721102473736,1.014,3474.9,3474.4,6.979072]
[1721102473936,1.014,3474.9,3474.4,5.87819]
[1721102474258,1.014,3474.9,3474.4,3.0]
[1721102474461,1.014,3474.9,3474.3,3.0]
[1721102474661,1.014,3474.9,3474.3,5.87826]
[1721102475259,1.014,3474.7,3474.3,3.0]
[1721102475459,1.014,3474.7,3474.2,3.0]
[1721102475729,2.4129,3474.8,3474.2,5.87833]
[1721102475973,2.38555872,3474.8,3474.2,7.001815]
[1721102476270,1.014,3474.7,3474.2,4.123485]
[1721102477290,1.014,3474.7,3474.2,7.001825]
[1721102477563,2.38555872,3474.8,3474.2,7.001825]
[1721102478754,1.014,3474.9,3474.2,7.001825]
[1721102478950,1.014,3474.9,3474.3,0.35626421]
[1721102479164,2.4765,3475.1,3474.4,0.05755994]
[1721102479364,1.014,3475.3,3474.6,2.87801]
[1721102479566,1.014,3475.3,3474.5,2.4485]
[1721102479877,12.6738,3475.5,3474.4,2.87814]
[1721102479878,1.014,3475.1,3474.4,2.87814]
[1721102480043,1.014,3475.1,3474.5,2.87809]
[1721102481738,1.014,3475.1,3474.6,2.87801]
[1721102482133,9.7965,3475.5,3474.7,2.8779]
[1721102482134,1.014,3475.3,3474.7,2.8779]
[1721102482478,1.014,3475.3,3474.8,2.87784]
[1721102483574,10.8105,3475.5,3474.9,2.87777]
[1721102483791,8.334,3475.5,3475.0,0.35626421]
[1721102484073,1.014,3475.5,3475.0,0.35626421]
[1721102485476,1.014,3475.5,3474.9,2.87777]
[1721102495582,1.20643219,3475.6,3475.1,2.8776]
[1721102496295,1.014,3475.5,3475.1,2.8776]
[1721102496582,1.014,3475.5,3474.9,2.87777]
[1721102496583,2.22043219,3475.5,3475.0,2.87765]
[1721102496939,1.20643219,3475.4,3475.0,2.87765]
[1721102498245,2.22043219,3475.5,3475.0,2.87765]
[1721102498449,2.22043219,3475.5,3474.7,2.4185]
[1721102498450,2.4546,3475.4,3474.7,2.87786]
[1721102498644,1.014,3475.3,3474.8,3.0]
[1721102502050,1.014,3475.3,3474.8,5.87786]
[1721102502246,1.014,3475.3,3474.9,0.875584]
[1721102502895,2.22249754,3475.3,3474.9,0.875584]
[1721102504152,1.014,3475.3,3474.9,0.875584]